bitfinex/quotes_ETHUSD_20241129
["timestamp","ask_amount","ask_price","bid_price","bid_amount"]
[1732895187820,1.0527,3626.7,3624.8,3.135362]
[1732895188057,1.0527,3626.7,3626.0,2.75784]
[1732895188229,1.0527,3626.7,3626.1,2.75777]
[1732895188548,1.0527,3626.7,3625.5,2.75821]
[1732895188750,1.0527,3626.7,3625.6,2.75815]
[1732895188954,1.0527,3626.7,3624.7,4.007]
[1732895189263,1.0527,3626.7,3625.4,2.75831]
[1732895189420,1.0527,3626.7,3624.8,2.75872]
[1732895189655,1.0527,3626.7,3625.7,2.75803]
[1732895189859,1.0527,3626.7,3625.5,2.75818]
[1732895190193,1.0527,3626.7,3625.3,2.75835]
[1732895190398,1.0527,3626.7,3625.6,2.75814]
[1732895190599,1.0527,3626.7,3625.6,5.51628]
[1732895190776,1.0527,3626.7,3625.6,2.75814]
[1732895191674,1.0527,3626.7,3625.7,2.75804]
[1732895191862,1.0527,3626.7,3624.8,0.55]
[1732895192059,1.0527,3626.7,3625.1,0.55]
[1732895192400,1.0527,3626.7,3626.2,2.7577]
[1732895192761,1.0527,3626.7,3626.5,2.75745]
[1732895193060,1.0527,3626.7,3625.3,2.75839]
[1732895193061,1.0527,3626.7,3626.6,2.7574]
[1732895193257,1.0527,3626.7,3626.5,2.75747]
[1732895193975,1.0527,3626.7,3626.1,2.75777]
[1732895194408,1.0527,3626.7,3626.3,2.75762]
[1732895195570,1.0527,3626.7,3625.6,3.78812]
[1732895195798,1.0527,3626.7,3626.2,2.75769]
[1732895196139,1.0527,3626.7,3626.3,2.75761]
[1732895196421,1.0527,3626.7,3626.6,2.7574]
[1732895196774,1.0527,3626.7,3626.4,2.75754]
[1732895197189,1.0527,3626.7,3626.0,2.75784]
[1732895197399,1.0527,3626.7,3624.9,0.19577]
[1732895197621,1.0527,3626.7,3625.1,2.7585]
[1732895197912,1.0527,3626.7,3624.9,2.75862]
[1732895198113,1.0527,3626.7,3624.8,2.75876]
[1732895198286,1.066,3626.5,3624.4,2.75907]
[1732895198487,1.066,3626.3,3624.5,2.75896]
[1732895198691,1.066,3626.1,3624.6,2.7589]
[1732895199021,1.066,3626.1,3624.5,2.75899]
[1732895201496,1.066,3626.1,3624.3,2.75914]
[1732895201699,1.066,3626.1,3624.6,2.7589]
[1732895201900,1.066,3626.1,3624.7,2.75884]
[1732895202094,1.066,3626.1,3624.2,2.75922]
[1732895202095,1.15219145,3626.1,3624.2,2.75922]
[1732895202307,1.066,3626.1,3624.8,2.75872]
[1732895202527,0.08619145,3626.0,3624.9,2.75868]
[1732895202699,1.0062,3625.9,3624.9,2.75868]
[1732895203097,1.0062,3625.9,3624.6,2.75886]
[1732895203308,1.0062,3625.9,3624.5,2.75898]
[1732895203519,1.0062,3625.9,3624.1,2.75927]
[1732895203823,1.0062,3625.7,3624.2,2.75916]
[1732895204208,1.0062,3625.7,3624.1,2.75929]
[1732895204407,1.0062,3625.7,3623.4,1.057]
[1732895204408,1.041,3625.5,3623.4,1.057]
[1732895204677,0.0862035,3625.4,3623.4,1.057]
[1732895204801,1.041,3625.3,3623.6,2.75968]
[1732895204996,2.903,3625.3,3624.1,2.75926]
[1732895205197,1.041,3625.1,3623.9,2.75945]
[1732895205403,1.041,3625.1,3624.0,2.75936]
[1732895206227,0.0862035,3625.0,3623.9,2.75945]
[1732895206537,0.0862035,3625.0,3617.4,13.0]
[1732895206538,0.0862035,3624.9,3623.0,1.0589]
[1732895206719,0.0862035,3624.9,3623.1,0.57759675]
[1732895206921,1.0084,3625.0,3623.1,0.57759675]
[1732895206922,1.0084,3625.0,3623.5,2.75973]
[1732895207233,1.0084,3625.0,3624.5,2.75898]
[1732895207391,1.0084,3625.0,3623.5,2.75973]
[1732895207392,1.0084,3625.0,3624.4,2.75905]
[1732895207792,1.0084,3625.0,3624.2,2.7592]
[1732895207993,1.0084,3625.0,3624.4,2.75902]
[1732895208217,1.0084,3625.0,3624.3,2.75915]
[1732895208925,1.0084,3625.0,3624.4,2.75906]
[1732895209135,1.0084,3625.0,3623.2,2.92363968]
[1732895209136,1.0084,3625.0,3623.9,2.75939]
[1732895210094,1.0084,3625.0,3623.2,0.16364968]
[1732895210299,1.0084,3625.0,3624.2,2.75916]
[1732895210535,1.0946035,3625.0,3623.8,2.75952]
[1732895210735,1.0084,3625.0,3623.6,2.75966]
[1732895210906,1.0415,3624.8,3623.0,1.0589]
[1732895211239,1.0415,3624.6,3623.8,2.75953]
[1732895211540,4.21785288,3627.5,3623.1,0.381906]
[1732895211541,0.0862035,3625.2,3624.9,2.75866]
[1732895211742,0.1,3626.9,3623.9,1.0873]
[1732895211743,1.0662,3625.1,3624.8,2.75876]
[1732895212029,1.0662,3625.1,3624.6,2.75885]
[1732895212235,1.0662,3625.1,3624.5,2.75899]
[1732895213023,1.0662,3625.1,3624.7,2.75879]
[1732895213833,1.0662,3625.1,3624.8,2.75872]
[1732895214033,1.0662,3625.1,3624.6,2.7589]
[1732895214346,1.0662,3625.1,3624.0,2.75938]
[1732895214507,1.0662,3625.1,3624.6,2.75885]
[1732895214710,1.0662,3625.1,3624.4,2.75905]
[1732895214962,1.08,3625.6,3625.0,2.75862]
[1732895215097,1.08,3625.6,3624.5,2.75895]
[1732895215098,1.08,3625.6,3625.1,2.75854]
[1732895215741,1.08,3625.6,3625.3,2.75837]
[1732895215923,1.08,3625.6,3625.2,2.75842]
[1732895216235,1.08,3625.6,3624.8,2.75871]
[1732895216441,1.08,3625.6,3624.7,2.75882]
[1732895216642,1.08,3625.6,3624.9,2.75868]
[1732895216938,1.08,3625.6,3624.0,0.55]
[1732895217164,1.08,3625.6,3624.9,2.75867]
[1732895217315,1.1662035,3625.6,3624.9,2.75867]
[1732895217635,1.08,3625.6,3625.0,2.75854]
[1732895217837,1.08,3625.6,3625.1,2.75853]
[1732895218800,1.08,3625.6,3624.9,2.75867]
[1732895219000,1.08,3625.6,3624.9,2.75863]
[1732895219348,1.08,3625.6,3624.5,2.75898]
[1732895219636,1.08,3625.6,3623.4,5.91780752]
[1732895219637,0.08619899,3625.5,3624.7,2.75879]
[1732895219877,0.08619899,3625.4,3625.0,2.7586]
[1732895220079,1.08,3625.6,3624.7,2.75879]
[1732895220080,0.08619899,3625.5,3624.7,2.75879]
[1732895220249,0.08619899,3625.5,3624.5,2.75898]
[1732895220573,1.08,3625.6,3624.7,2.75884]
[1732895220574,0.08619899,3625.4,3624.7,2.75884]
[1732895220873,0.08619865,3625.5,3624.2,2.75918]
[1732895221073,0.08619865,3625.4,3625.0,2.75861]
[1732895221376,0.08619865,3625.4,3624.3,3.035028]
[1732895221377,0.08619865,3625.5,3624.5,0.55]
[1732895221530,1.07759865,3626.0,3625.7,2.75802]
[1732895221733,0.08619865,3625.9,3624.6,5.91691752]
[1732895221963,0.08619865,3625.9,3624.7,0.75534175]
[1732895222180,0.9914,3626.0,3624.7,0.75534175]
[1732895222535,0.9914,3626.0,3625.4,2.75831]
[1732895222746,0.9914,3626.0,3625.2,2.75844]
[1732895222959,0.08619865,3625.9,3625.1,2.75849]
[1732895223167,0.08619865,3625.8,3625.2,2.75846]
[1732895223502,0.08619865,3625.9,3625.7,2.75808]
[1732895223837,0.9914,3626.0,3625.6,2.75815]
[1732895224036,0.9914,3626.0,3625.8,2.75794]
[1732895224269,0.9914,3626.0,3625.6,2.75809]
[1732895224878,1.07759865,3626.0,3625.4,2.7583]
[1732895225080,0.08619865,3625.9,3625.4,2.75825]
[1732895225282,0.08619865,3625.8,3625.5,2.75821]
[1732895225443,0.08619865,3625.9,3625.5,2.75821]
[1732895225640,0.08619865,3625.8,3625.6,2.75814]
[1732895225852,0.08619865,3625.9,3625.7,2.75808]
[1732895226055,0.08619865,3625.8,3625.7,2.75808]
[1732895226268,0.08619865,3625.9,3625.5,2.75823]
[1732895226468,0.08619865,3625.8,3625.2,2.75842]
[1732895226786,0.9914,3626.0,3625.5,2.75823]
[1732895227683,0.9914,3626.0,3625.2,2.75842]
[1732895228011,0.9914,3626.0,3624.6,2.75885]
[1732895228169,0.9914,3626.0,3624.9,2.75864]
[1732895228357,0.9914,3626.0,3625.2,2.75846]
[1732895228555,0.9914,3626.0,3624.6,1.0430408]
[1732895228761,0.9914,3626.0,3625.3,2.75838]
[1732895229177,0.9914,3626.0,3624.6,1.0430408]
[1732895229178,0.9914,3626.0,3625.6,2.75809]
[1732895229383,0.9914,3626.0,3625.2,2.75846]
[1732895230187,0.9914,3626.0,3624.6,1.0430408]
[1732895230387,0.9914,3626.0,3624.9,2.75863]
[1732895231080,0.9914,3626.0,3625.4,2.75829]
[1732895231415,0.9914,3626.0,3625.7,2.75808]
[1732895231618,1.0805,3626.4,3625.6,2.75816]
[1732895231779,0.00264967,3627.1,3626.8,2.75725]
[1732895231977,0.00264967,3627.1,3625.7,0.275816]
[1732895231978,0.00264967,3627.5,3626.2,3.79474]
[1732895232215,1.08314967,3627.4,3626.2,2.75764]
[1732895232522,11.07604698,3628.2,3626.1,2.75778]
[1732895232523,1.0805,3627.1,3626.1,2.75778]
[1732895232680,1.0805,3627.1,3625.7,0.275816]
[1732895232879,1.0805,3627.1,3625.6,1.0371]
[1732895233123,1.0805,3627.1,3626.2,2.75769]
[1732895233315,1.0805,3627.1,3626.4,2.75754]
[1732895233613,1.0805,3627.1,3625.8,2.75801]
[1732895233787,1.0805,3627.1,3626.0,2.7578]
[1732895233990,1.0805,3627.1,3626.1,2.75775]
[1732895234415,1.0805,3627.1,3625.6,2.75816]
[1732895234617,1.0805,3627.1,3625.7,2.75803]
[1732895235340,1.0805,3627.1,3625.8,2.75799]
[1732895235522,1.0805,3627.1,3625.4,1.0116]
[1732895235523,1.0805,3627.1,3625.9,2.75791]
[1732895235828,1.0805,3627.1,3625.6,2.75813]
[1732895236596,1.0805,3627.1,3625.1,3.81708]
[1732895236915,1.01004967,3626.7,3625.1,2.75848]
[1732895237219,1.0074,3626.5,3625.1,2.75848]
[1732895237424,1.01004967,3626.5,3625.1,2.75848]
[1732895237919,1.01004745,3626.5,3624.9,2.75863]
[1732895238247,0.9826,3626.1,3623.9,2.75942]
[1732895238554,0.97134745,3625.6,3624.1,2.7593]
[1732895238700,0.00264745,3625.5,3624.0,2.75935]
[1732895238895,0.00264745,3625.5,3624.0,0.275935]
[1732895238896,0.9687,3625.4,3624.0,0.275935]
[1732895239097,0.9687,3625.2,3621.9,3.1365]
[1732895239294,0.9687,3624.9,3622.2,2.76072]
[1732895239521,0.9687,3624.6,3622.3,2.76061]
[1732895239734,0.00264745,3624.5,3622.4,2.76054]
[1732895239939,1.0022,3624.4,3622.4,0.552123]
[1732895240142,0.00264745,3624.1,3622.3,2.76067]
[1732895240347,0.00264745,3624.1,3622.0,3.74463]
[1732895240348,1.0022,3624.0,3622.0,3.74463]
[1732895240542,1.0022,3624.0,3622.2,2.76071]
[1732895240754,1.0022,3624.0,3622.2,5.52142]
[1732895240951,1.0022,3624.0,3622.2,2.76071]
[1732895241247,1.00484745,3624.0,3621.7,2.76105]
[1732895241464,1.0269,3623.7,3621.6,2.76115]
[1732895241744,1.0269,3623.5,3621.9,2.76095]
[1732895241949,1.0269,3623.5,3621.7,2.76111]
[1732895242254,1.0269,3623.5,3621.5,2.76127]
[1732895242478,1.0269,3623.5,3621.7,2.76113]
[1732895242683,1.0269,3623.5,3621.6,2.76119]
[1732895242973,1.0269,3623.5,3621.3,2.76137]
[1732895243271,0.9768,3623.2,3621.5,2.76122]
[1732895244271,0.9768,3623.2,3621.2,0.55]
[1732895244645,0.9768,3623.2,3621.3,2.76143]
[1732895244968,0.9768,3623.2,3621.3,3.56279853]
[1732895245276,0.9768,3623.2,3621.3,3.56278853]
[1732895245480,0.9768,3623.2,3621.4,2.76133]
[1732895245980,0.9768,3623.2,3621.2,3.31144]
[1732895246132,1.0579,3623.0,3621.2,3.31144]
[1732895246338,1.0579,3623.0,3621.3,2.76142]
[1732895246780,1.0579,3623.0,3621.5,2.76127]
[1732895246987,1.0579,3623.0,3621.5,2.76122]
[1732895247149,1.0579,3623.0,3621.3,2.76143]
[1732895247351,1.0579,3623.0,3621.5,2.76125]
[1732895247571,1.0579,3623.0,3621.3,2.76143]
[1732895247988,1.0579,3623.0,3621.2,1.15731]
[1732895248185,1.0579,3623.0,3621.6,2.76118]
[1732895248345,1.0579,3623.0,3621.7,2.76107]
[1732895249200,1.0579,3623.0,3621.4,2.7613]
[1732895249491,1.0579,3623.0,3621.4,2.76133]
[1732895249695,0.9708,3622.8,3621.4,0.55]
[1732895250353,0.9708,3622.8,3621.4,3.31134]
[1732895250560,0.9708,3622.8,3620.6,1.0056]
[1732895250561,0.9708,3622.8,3621.5,2.76127]
[1732895251302,0.9708,3622.8,3621.3,3.31143]
[1732895251993,0.9708,3622.8,3620.0,0.1]
[1732895251994,0.9708,3622.8,3620.9,2.76172]
[1732895252193,0.9708,3622.8,3621.0,2.76166]
[1732895252493,0.9708,3622.8,3621.0,0.276166]
[1732895252692,0.9708,3622.8,3621.3,2.76143]
[1732895252904,0.9708,3622.8,3622.7,2.76037]
[1732895253070,0.9708,3623.2,3622.8,2.76025]
[1732895253262,0.9708,3623.2,3622.3,0.55]
[1732895253455,0.9708,3623.2,3622.9,2.76014]
[1732895253671,0.9708,3623.2,3622.8,0.55]
[1732895253880,0.9708,3624.8,3622.8,0.55]
[1732895254096,0.9708,3624.7,3622.9,2.76015]
[1732895254297,0.9708,3624.7,3623.2,2.75998]
[1732895254502,0.9708,3624.7,3622.2,2.76069]
[1732895254503,0.9708,3624.7,3621.7,2.7611]
[1732895254668,0.9708,3624.7,3623.2,2.75998]
[1732895254873,0.9708,3624.7,3623.4,2.75982]
[1732895255095,0.9708,3624.7,3623.6,2.75968]
[1732895255262,0.9708,3624.7,3623.9,2.75938]
[1732895255462,0.9708,3624.7,3623.7,0.55]
[1732895255711,0.9708,3624.7,3623.9,2.75942]
[1732895256213,0.9708,3624.7,3623.7,0.55]
[1732895256359,0.9708,3624.7,3623.5,0.55]
[1732895256565,0.9708,3624.7,3623.2,0.55]
[1732895256868,0.9708,3624.7,3623.4,2.75978]
[1732895257271,0.9708,3624.7,3623.2,0.55]
[1732895257494,0.9708,3624.7,3623.4,2.75982]
[1732895257690,0.9708,3624.7,3623.2,3.30994]
[1732895257876,0.9708,3624.7,3623.0,0.55]
[1732895258204,0.9708,3624.7,3623.0,2.76013]
[1732895258412,0.9708,3624.7,3623.1,0.55]
[1732895258711,0.9708,3624.7,3623.3,2.7599]
[1732895259081,0.9708,3624.7,3623.1,3.917102]
[1732895259465,0.9708,3624.7,3623.1,1.18464248]
[1732895259670,0.9708,3624.7,3623.8,2.75949]
[1732895259912,0.9708,3624.7,3623.7,0.55]
[1732895260065,0.9708,3624.7,3623.4,2.75983]
[1732895260266,0.9708,3624.7,3623.2,2.75998]
[1732895260509,0.9708,3624.7,3623.3,2.75991]
[1732895261005,0.9708,3624.7,3623.4,2.7598]
[1732895261217,0.9708,3624.7,3623.6,2.75961]
[1732895261393,0.9708,3624.7,3623.7,0.55]
[1732895261589,0.9708,3624.7,3624.1,2.75923]
[1732895261776,0.9708,3624.7,3624.0,0.55]
[1732895262290,0.9708,3624.7,3623.9,2.75945]
[1732895262291,0.9708,3624.7,3623.9,3.30944]
[1732895262483,2.759,3624.5,3623.9,3.30944]
[1732895262678,2.75908,3624.4,3623.8,0.55]
[1732895262904,2.75916,3624.3,3623.8,0.55]
[1732895263214,3.72965,3624.7,3623.8,2.75952]
[1732895263429,0.9708,3624.7,3623.7,2.75959]
[1732895263720,2.75912,3624.4,3623.8,0.55]
[1732895263918,2.75912,3624.4,3623.7,0.55]
[1732895264223,3.72966,3624.7,3623.8,2.75948]
[1732895264849,0.9708,3624.7,3623.9,2.75942]
[1732895265015,0.9708,3624.7,3624.2,2.75917]
[1732895265493,0.9708,3624.7,3623.1,1.0212]
[1732895265494,0.9708,3624.7,3624.1,2.75925]
[1732895265696,0.9708,3624.7,3624.2,2.75921]
[1732895265919,0.9708,3624.7,3623.7,0.55]
[1732895266127,2.75831,3625.4,3624.5,2.75893]
[1732895266299,0.9982,3625.3,3624.7,2.75879]
[1732895266621,0.9982,3625.3,3623.6,2.75968]
[1732895266622,2.75846,3625.2,3624.2,3.30922]
[1732895266779,0.9982,3625.3,3624.2,0.55]
[1732895266984,2.75871,3624.9,3624.3,2.75909]
[1732895267185,2.75871,3624.9,3624.4,0.55]
[1732895267720,0.9982,3625.3,3624.4,3.30901]
[1732895268208,0.9982,3625.3,3624.3,0.55]
[1732895268385,0.9982,3625.3,3624.6,2.75891]
[1732895268784,0.9982,3625.3,3624.4,2.75907]
[1732895269001,0.9982,3625.3,3624.9,0.55]
[1732895269194,0.9982,3625.3,3624.9,2.75868]
[1732895269392,0.9982,3625.3,3624.8,0.55]
[1732895270107,0.9982,3625.3,3624.9,3.30868]
[1732895270490,3.76168,3625.6,3624.9,0.55]
[1732895270689,1.0035,3625.6,3625.0,2.75861]
[1732895270919,1.0035,3625.6,3625.1,2.75853]
[1732895271139,1.0035,3626.0,3625.4,2.75826]
[1732895271419,1.0035,3626.0,3625.6,2.75809]
[1732895271621,1.0035,3626.0,3625.4,2.75826]
[1732895271622,3.76143,3626.0,3625.5,0.55]
[1732895271794,1.0035,3626.0,3625.5,3.30823]
[1732895272002,1.0035,3626.0,3625.8,2.75799]
[1732895272185,3.76105,3626.4,3625.5,0.55]
[1732895272381,1.0035,3626.4,3625.5,3.30821]
[1732895272626,2.75791,3626.0,3625.4,3.30828]
[1732895273123,2.75804,3625.8,3625.3,0.55]
[1732895273333,1.0035,3626.4,3625.3,0.55]
[1732895273509,2.75799,3625.9,3625.3,0.55]
[1732895273711,2.75799,3625.9,3625.3,3.30837]
[1732895274527,2.75799,3625.9,3625.2,0.55]
[1732895274741,2.75793,3625.9,3624.5,2.75898]
[1732895274893,3.0,3626.4,3624.7,2.75879]
[1732895274894,2.75829,3625.5,3624.7,2.75879]
[1732895275098,1.0184,3625.8,3624.9,2.75868]
[1732895275813,1.0184,3625.8,3624.3,1.0573]
[1732895276134,1.0184,3625.8,3624.7,3.3088]
[1732895276303,2.75826,3625.5,3624.9,2.75864]
[1732895276709,1.0184,3625.8,3624.7,0.55]
[1732895276902,2.75818,3625.6,3624.9,2.75864]
[1732895277153,1.0184,3625.8,3625.4,2.75831]
[1732895277354,3.7876,3626.2,3625.6,2.75814]
[1732895277645,3.7876,3626.2,3625.4,5.51656]
[1732895277853,3.7876,3626.2,3625.5,2.75821]
[1732895278020,2.75784,3626.1,3625.5,2.75821]
[1732895279544,2.75798,3625.9,3625.3,0.55]
[1732895279724,2.75802,3625.8,3625.3,0.55]
[1732895279933,2.75802,3625.8,3625.1,0.55]
[1732895280131,2.7581,3625.7,3625.1,0.55]
[1732895280367,2.7581,3625.7,3625.1,3.30852]
[1732895280522,2.75827,3625.5,3625.1,0.55]
[1732895280718,2.75809,3625.7,3624.5,2.759]
[1732895281020,1.0513,3625.8,3625.2,2.75845]
[1732895281021,3.80931,3625.8,3625.2,2.75845]
[1732895281216,2.75779,3626.1,3625.2,2.75845]
[1732895281217,2.75779,3626.1,3625.3,2.75839]
[1732895281417,2.75795,3625.9,3625.3,2.75839]
[1732895281657,1.0513,3626.2,3625.2,1.0317]
[1732895281829,2.75792,3626.0,3625.2,1.0317]
[1732895282026,2.75794,3625.9,3625.3,0.55]
[1732895282257,2.75794,3625.9,3625.2,3.79016]
[1732895282258,2.20651,3625.7,3625.1,0.55]
[1732895282457,2.20629,3626.0,3625.3,2.75837]
[1732895282647,2.20629,3626.0,3624.9,0.55]
[1732895282648,1.0513,3626.2,3624.9,0.57758323]
[1732895282857,1.0513,3626.2,3624.8,1.0672]
[1732895282858,1.0092,3626.6,3625.2,1.0266]
[1732895283035,1.0092,3626.9,3625.7,5.51616]
[1732895283224,2.20562,3627.1,3626.4,2.75753]
[1732895283671,3.2147,3627.3,3626.4,0.55]
[1732895283672,1.0092,3627.3,3626.4,0.55]
[1732895283883,3.21474,3627.3,3626.6,2.75739]
[1732895284349,2.20562,3627.1,3626.4,0.55]
[1732895284535,2.20574,3626.9,3626.4,0.55]
[1732895285134,3.21473,3627.3,3626.7,0.55]
[1732895285361,3.21473,3627.3,3626.8,0.55]
[1732895285750,2.20569,3627.0,3626.8,0.55]
[1732895285936,2.20569,3627.0,3626.4,2.75749]
[1732895286132,2.20565,3627.1,3626.5,0.55]
[1732895286449,2.20565,3627.1,3626.4,3.30754]
[1732895286450,2.20563,3627.1,3626.4,3.30754]
[1732895286651,2.20591,3626.7,3626.0,3.3078]
[1732895286983,2.20575,3626.9,3626.0,0.55]
[1732895287135,2.20583,3626.8,3625.9,0.984]
[1732895287336,1.0092,3627.3,3625.6,2.75815]
[1732895287337,2.2062,3626.2,3625.6,2.75815]
[1732895287680,2.20632,3626.0,3625.4,3.8023]
[1732895287972,2.20647,3625.7,3625.4,1.044]
[1732895288132,2.20622,3626.1,3624.7,0.989]
[1732895288459,2.20671,3625.3,3624.7,0.989]
[1732895288772,2.20659,3625.5,3624.8,2.75877]
[1732895289139,1.0027,3625.6,3624.9,2.75868]
[1732895289446,0.00263888,3626.7,3625.1,2.75853]
[1732895289447,1.0634,3626.6,3625.1,2.75853]
[1732895289661,1.0634,3626.6,3625.2,2.75841]
[1732895290160,1.0634,3626.6,3625.0,2.75859]
[1732895290362,1.0634,3626.6,3624.9,2.75869]
[1732895290563,0.08618843,3626.5,3625.1,2.75854]
[1732895290864,2.20642,3625.8,3625.1,2.75854]
[1732895291061,2.20629,3626.0,3625.2,2.75846]
[1732895291284,2.20629,3626.0,3625.3,2.75834]
[1732895291285,0.08618462,3625.9,3625.3,2.75834]
[1732895291643,2.20645,3625.8,3625.1,2.75849]
[1732895291984,2.20664,3625.5,3625.0,0.55]
[1732895292279,2.20664,3625.5,3624.7,3.74782]
[1732895292280,2.70542,3625.8,3624.8,3.30877]
[1732895292435,0.08618722,3625.7,3625.1,0.55]
[1732895292640,1.65485,3625.7,3625.1,0.55]
[1732895292860,1.0506,3625.8,3625.1,3.30852]
[1732895293063,1.65488,3625.7,3625.1,3.30852]
[1732895293392,1.65493,3625.6,3625.0,0.55]
[1732895293678,1.65504,3625.3,3624.7,3.74782]
[1732895294152,1.6549,3625.6,3624.9,2.75864]
[1732895294347,1.65488,3625.7,3624.7,3.7478]
[1732895294541,1.65498,3625.5,3624.7,3.7478]
[1732895294941,1.65498,3625.5,3624.8,0.55]
[1732895295137,1.0506,3625.8,3625.0,2.75861]
[1732895295375,1.74107943,3625.7,3625.1,0.55]
[1732895295577,1.65496,3625.5,3625.1,0.55]
[1732895295768,1.65496,3625.5,3624.9,3.30864]
[1732895296170,1.0506,3625.8,3624.7,0.989]
[1732895296342,1.65502,3625.4,3624.5,2.759]
[1732895296546,1.0506,3625.8,3624.5,2.759]
[1732895296547,1.74121704,3625.3,3624.7,2.75879]
[1732895296742,1.65511,3625.2,3624.5,2.759]
[1732895296979,1.0506,3625.8,3624.4,2.75907]
[1732895297195,1.0506,3625.8,3624.3,1.0353]
[1732895297196,0.08619298,3625.7,3624.3,1.0353]
[1732895297355,0.08619298,3625.6,3625.5,2.75823]
[1732895297557,1.0089,3626.3,3625.4,0.9651]
[1732895297558,0.08619298,3626.2,3625.4,0.9651]
[1732895297780,0.08619298,3626.1,3625.6,2.75814]
[1732895297987,0.08619298,3626.0,3625.6,2.75814]
[1732895298291,0.08619298,3625.9,3625.6,2.75814]
[1732895298451,0.08619298,3625.8,3625.5,0.55]
[1732895298649,1.65467,3626.1,3625.5,3.30823]
[1732895298961,0.0861779,3626.0,3625.6,2.75816]
[1732895299165,0.0861779,3625.9,3625.8,2.75799]
[1732895299588,1.65463,3626.2,3625.5,3.3082]
[1732895299907,1.74085608,3626.1,3625.5,3.3082]
[1732895300053,0.08617608,3626.0,3625.5,0.55]
[1732895300399,1.0089,3626.3,3625.7,2.75802]
[1732895300400,0.08617608,3625.9,3625.7,2.75802]
[1732895300684,1.65710772,3626.6,3625.7,3.30802]
[1732895300685,0.08617608,3625.8,3625.7,3.30802]
[1732895300891,1.74072608,3626.4,3625.8,2.75798]
[1732895301077,0.08617488,3626.3,3625.7,0.55]
[1732895301388,0.08617488,3626.2,3625.8,2.758]
[1732895301585,0.08617488,3626.1,3625.8,2.758]
[1732895301775,0.08617488,3626.0,3625.6,3.30813]
[1732895302085,1.10326,3625.6,3625.0,1.0512]
[1732895302294,0.9681,3625.8,3624.7,0.9879]
[1732895302448,0.08618248,3625.7,3625.2,2.75839]
[1732895302654,0.08618248,3625.6,3625.1,2.75849]
[1732895302847,0.08618248,3625.5,3625.1,2.75849]
[1732895303172,0.9681,3625.8,3625.2,2.75846]
[1732895303491,0.08618515,3625.7,3625.2,2.75846]
[1732895303787,0.08618515,3625.6,3625.2,2.75846]
[1732895304094,0.9681,3625.8,3625.2,2.75846]
[1732895304297,0.08618091,3625.7,3625.2,5.51687]
[1732895304585,0.08618233,3625.6,3625.2,2.75841]
[1732895304752,1.10327,3625.6,3625.1,0.55]
[1732895304952,1.10332,3625.4,3624.8,3.30872]
[1732895305182,1.10333,3625.4,3625.0,0.55]
[1732895305353,1.0251,3625.5,3625.0,0.55]
[1732895305549,0.08618745,3625.4,3625.0,0.55]
[1732895305786,1.0251,3625.5,3625.0,0.55]
[1732895305989,0.08618725,3625.4,3624.8,3.30877]
[1732895306214,1.0251,3625.5,3624.8,3.30877]
[1732895306215,0.08618725,3625.3,3624.8,3.30877]
[1732895306355,1.0251,3625.5,3624.8,3.30877]
[1732895306555,1.0251,3625.5,3625.0,3.30861]
[1732895306773,0.08618748,3625.4,3625.0,3.30861]
[1732895306981,0.08618748,3625.3,3625.0,3.30861]
[1732895307185,1.0251,3625.5,3625.0,3.30861]
[1732895307492,0.08618754,3625.4,3625.0,3.30861]
[1732895307699,1.0251,3625.5,3624.9,3.30867]
[1732895307900,0.08618755,3625.4,3624.9,3.30867]
[1732895308063,1.0251,3625.5,3624.9,3.30867]
[1732895308392,0.08618761,3625.4,3625.0,2.75857]
[1732895308694,1.0323,3626.1,3625.0,2.75857]
[1732895308990,1.10325,3625.7,3625.0,2.75857]
[1732895309203,1.18944698,3625.6,3625.0,2.75857]
[1732895309378,0.08618698,3625.5,3625.0,2.7586]
[1732895309686,1.10327,3625.6,3624.9,3.30864]
[1732895310036,0.08618694,3625.5,3625.0,1.0565]
[1732895310195,0.08618357,3625.9,3625.6,0.55]
[1732895310353,0.08618357,3626.3,3626.0,2.75785]
[1732895310695,0.08616434,3626.6,3626.5,2.75741]
[1732895310987,0.9722,3627.2,3626.5,2.75741]
[1732895310988,1.18899434,3627.1,3626.6,2.75738]
[1732895311292,0.9722,3627.2,3626.4,3.30749]
[1732895311293,1.18900434,3627.0,3626.4,3.30749]
[1732895311497,0.08616434,3626.9,3626.5,2.75747]
[1732895311655,0.08616434,3626.8,3626.5,2.75747]
[1732895311862,0.08616434,3627.1,3626.7,2.75727]
[1732895312080,0.08616434,3627.0,3626.6,0.55]
[1732895312400,0.82707,3627.3,3626.6,3.30735]
[1732895312690,0.08616434,3627.2,3626.6,3.30735]
[1732895312895,0.08616434,3627.2,3626.7,2.75726]
[1732895313093,0.08616434,3627.4,3627.0,2.75708]
[1732895313297,0.82704,3627.4,3626.9,0.55]
[1732895313595,0.91321434,3627.4,3626.8,2.75717]
[1732895313801,0.08616434,3627.5,3626.9,0.55]
[1732895314011,0.08616434,3627.4,3626.9,0.55]
[1732895314165,0.08616434,3627.5,3627.2,2.75692]
[1732895314369,0.82695,3627.8,3627.2,2.75692]
[1732895314565,0.08616434,3627.8,3627.3,0.55]
[1732895314765,0.08616434,3627.9,3627.5,0.55]
[1732895315064,0.9663,3628.5,3627.5,0.55]
[1732895315065,0.82683,3628.3,3627.5,0.55]
[1732895315291,0.82691,3628.0,3627.4,3.30674]